[Event "EIRCC 2019"]
[Site "Tallinn"]
[Date "2019.12.05"]
[Round "4.13"]
[White "Smirnov, Artem"]
[Black "Saric, Ante"]
[Result "0-1"]
[ECO "E20"]
[WhiteElo "2337"]
[BlackElo "2538"]
[Annotator "ChessBase"]
[PlyCount "84"]
[EventDate "2019.12.05"]
[EventType "swiss"]
[EventCountry "EST"]
[SourceTitle "playchess.com"]
[Source "ChessBase"]
[SourceQuality "1"]
[TimeControl "900+10"]

1. d4 {[%emt 0:00:00]} Nf6 {[%emt 0:00:00]} 2. c4 {[%emt 0:00:00]} e6 {[%emt 0:00:00]} 3. Nc3 {[%emt 0:00:00]} Bb4 {[%emt 0:00:00]} 4. f3 {[%emt 0:00:00]} d5 {[%emt 0:00:00]} 5. a3 {[%emt 0:00:06]} Bxc3+ {[%emt 0:00:00]} 6. bxc3 {[%emt 0:00:01]} c6 {[%emt 0:00:00]} 7. e3 {[%emt 0:00:34]} O-O {[%emt 0:00:10]} 8. Nh3 {[%emt 0:01:35]} b6 {[%emt 0:00:05]} 9. cxd5 {[%emt 0:00:03]} cxd5 {[%emt 0:00:03]} 10. Nf2 {[%emt 0:00:40]} Qc7 {[%emt 0:00:01]} 11. Bd2 {[%emt 0:00:15]} Ba6 {[%emt 0:00:38]} 12. Bxa6 {[%emt 0:00:15]} Nxa6 {[%emt 0:00:01]} 13. O-O {[%emt 0:00:03]} Nb8 {[%emt 0:00:46]} 14. e4 {[%emt 0:00:14]} Nc6 {[%emt 0:00:02]} 15. e5 {[%emt 0:03:39]} Nd7 {[%emt 0:00:57]} 16. Nh3 {[%emt 0:00:53]} Na5 {[%emt 0:00:30]} 17. f4 {[%emt 0:01:05]} f5 {[%emt 0:00:02]} 18. Ng5 {[%emt 0:02:29]} Qc6 {[%emt 0:00:50]} 19. Qh5 {[%emt 0:00:37]} h6 {[%emt 0:00:03]} 20. Rf3 {[%emt 0:01:27]} Nb8 {[%emt 0:02:56]} 21. Qg6 {[%emt 0:03:28]} hxg5 {[%emt 0:00:17]} 22. Rh3 {[%emt 0:00:00]} Qe8 {[%emt 0:00:53]} 23. Qh7+ {[%emt 0:00:09]} Kf7 {[%emt 0:00:01]} 24. fxg5 {[%emt 0:01:04]} Ke7 {[%emt 0:02:17]} 25. c4 {[%emt 0:00:08]} Nxc4 {[%emt 0:00:21]} 26. Bb4+ {[%emt 0:00:07]} Kd7 {[%emt 0:00:00]} 27. Bxf8 {[%emt 0:00:18]} Qxf8 {[%emt 0:00:15]} 28. Qg6 {[%emt 0:00:14]} Nc6 {[%emt 0:00:31]} 29. Rh7 {[%emt 0:00:04]} Nxd4 {[%emt 0:02:15]} 30. Rxg7+ {[%emt 0:00:02]} Kc6 {[%emt 0:00:02]} 31. Qh7 {[%emt 0:00:21]} Kb5 {[%emt 0:00:29]} 32. Rc7 {[%emt 0:00:16]} Ka6 {[%emt 0:00:21]} 33. Qd7 {[%emt 0:00:09]} Qe8 {[%emt 0:00:03]} 34. Qh7 {[%emt 0:00:12]} Qb5 {[%emt 0:00:36]} 35. Rd1 {[%emt 0:00:08]} Qb3 {[%emt 0:00:29]} 36. Re1 {[%emt 0:00:12]} Qc3 {[%emt 0:00:26]} 37. Qh4 {[%emt 0:00:10]} Rg8 {[%emt 0:00:28]} 38. Kh1 {[%emt 0:00:11]} Rxg5 {[%emt 0:00:06]} 39. Qf2 {[%emt 0:00:04]} f4 {[%emt 0:00:37]} 40. Rd1 {[%emt 0:00:10]} Rxe5 {[%emt 0:00:22]} 41. h3 {[%emt 0:00:14]} Ne2 {[%emt 0:00:45]} 42. a4 {[%emt 0:00:09]} Qc2 {[%emt 0:00:37]} 0-1

[Event "EIRCC 2019"]
[Site "Tallinn"]
[Date "2019.12.05"]
[Round "4.14"]
[White "Belyakov, Bogdan"]
[Black "Chernyak, Viktoria"]
[Result "1/2-1/2"]
[ECO "B13"]
[WhiteElo "2520"]
[BlackElo "2233"]
[Annotator "ChessBase"]
[PlyCount "146"]
[EventDate "2019.12.05"]
[EventType "swiss"]
[EventCountry "EST"]
[SourceTitle "playchess.com"]
[Source "ChessBase"]
[SourceQuality "1"]
[TimeControl "900+10"]

1. e4 {[%emt 0:00:00]} c6 {[%emt 0:00:00]} 2. d4 {[%emt 0:00:00]} d5 {[%emt 0:00:00]} 3. exd5 {[%emt 0:00:00]} cxd5 {[%emt 0:00:00]} 4. c4 {[%emt 0:00:00]} Nf6 {[%emt 0:00:00]} 5. Nc3 {[%emt 0:00:00]} Nc6 {[%emt 0:00:07]} 6. Nf3 {[%emt 0:00:00]} e6 {[%emt 0:00:53]} 7. a3 {[%emt 0:00:16]} Be7 {[%emt 0:01:03]} 8. c5 {[%emt 0:00:08]} O-O {[%emt 0:00:02]} 9. Bd3 {[%emt 0:00:18]} Re8 {[%emt 0:00:28]} 10. O-O {[%emt 0:00:08]} a5 {[%emt 0:01:07]} 11. Bf4 {[%emt 0:03:54]} Nd7 {[%emt 0:01:03]} 12. Re1 {[%emt 0:01:13]} g6 {[%emt 0:00:02]} 13. Nb5 {[%emt 0:00:05]} e5 {[%emt 0:01:17]} 14. Nxe5 {[%emt 0:00:29]} Ncxe5 {[%emt 0:00:31]} 15. Bxe5 {[%emt 0:00:03]} Nxe5 {[%emt 0:00:04]} 16. Rxe5 {[%emt 0:00:03]} Be6 {[%emt 0:00:01]} 17. Qf3 {[%emt 0:00:32]} Bf6 {[%emt 0:00:45]} 18. Re2 {[%emt 0:00:17]} Bg7 {[%emt 0:00:02]} 19. Rae1 {[%emt 0:00:28]} Qd7 {[%emt 0:00:38]} 20. h3 {[%emt 0:00:23]} Rf8 {[%emt 0:01:22]} 21. Qf4 {[%emt 0:00:17]} Rad8 {[%emt 0:00:56]} 22. b4 {[%emt 0:00:55]} Qc6 {[%emt 0:00:50]} 23. Nc7 {[%emt 0:00:16]} Qa4 {[%emt 0:00:10]} 24. Nb5 {[%emt 0:01:50]} axb4 {[%emt 0:00:13]} 25. axb4 {[%emt 0:00:04]} Qxb4 {[%emt 0:00:04]} 26. Rb1 {[%emt 0:00:10]} Qa4 {[%emt 0:00:44]} 27. Qd2 {[%emt 0:02:30]} Rd7 {[%emt 0:01:22]} 28. Qc3 {[%emt 0:01:09]} Qa8 {[%emt 0:00:43]} 29. Nd6 {[%emt 0:00:22]} Rc7 {[%emt 0:00:14]} 30. Reb2 {[%emt 0:00:22]} Qa4 {[%emt 0:01:28]} 31. Rb4 {[%emt 0:00:06]} Qd7 {[%emt 0:00:01]} 32. Qa3 {[%emt 0:00:20]} Qe7 {[%emt 0:00:42]} 33. Qa5 {[%emt 0:00:31]} Rd7 {[%emt 0:00:52]} 34. Nxb7 {[%emt 0:00:56]} Qg5 {[%emt 0:00:19]} 35. c6 {[%emt 0:00:32]} Bxh3 {[%emt 0:00:05]} 36. Bf1 {[%emt 0:00:03]} Re7 {[%emt 0:00:09]} 37. Qc5 {[%emt 0:00:38]} Rfe8 {[%emt 0:00:14]} 38. R4b3 {[%emt 0:00:14]} Bf5 {[%emt 0:00:22]} 39. Rc1 {[%emt 0:01:07]} Qf4 {[%emt 0:00:10]} 40. Rf3 {[%emt 0:00:10]} Qd2 {[%emt 0:00:49]} 41. Qc3 {[%emt 0:00:32]} Qxc3 {[%emt 0:00:25]} 42. Rfxc3 {[%emt 0:00:02]} Bxd4 {[%emt 0:00:01]} 43. Rb3 {[%emt 0:00:06]} Be5 {[%emt 0:00:11]} 44. Bd3 {[%emt 0:00:15]} Be6 {[%emt 0:00:14]} 45. Nc5 {[%emt 0:00:05]} Rc7 {[%emt 0:00:04]} 46. Nxe6 {[%emt 0:00:06]} fxe6 {[%emt 0:00:15]} 47. Bb5 {[%emt 0:00:13]} Bd6 {[%emt 0:00:23]} 48. Re1 {[%emt 0:00:07]} Kf7 {[%emt 0:00:28]} 49. g4 {[%emt 0:00:24]} Kf6 {[%emt 0:00:40]} 50. Kg2 {[%emt 0:00:04]} h5 {[%emt 0:00:04]} 51. gxh5 {[%emt 0:00:06]} gxh5 {[%emt 0:00:01]} 52. Rh1 {[%emt 0:00:09]} Rh8 {[%emt 0:00:15]} 53. Rf3+ {[%emt 0:00:05]} Kg5 {[%emt 0:00:05]} 54. Re1 {[%emt 0:00:09]} Re8 {[%emt 0:00:27]} 55. Rd3 {[%emt 0:00:10]} Ree7 {[%emt 0:00:05]} 56. Rde3 {[%emt 0:00:07]} e5 {[%emt 0:00:08]} 57. Rd3 {[%emt 0:00:10]} d4 {[%emt 0:00:02]} 58. Rg3+ {[%emt 0:00:02]} Kf6 {[%emt 0:00:06]} 59. Rf3+ {[%emt 0:00:06]} Kg5 {[%emt 0:00:02]} 60. Rf8 {[%emt 0:00:15]} Rg7 {[%emt 0:00:34]} 61. Rd8 {[%emt 0:00:24]} Kf4+ {[%emt 0:00:01]} 62. Kf1 {[%emt 0:00:18]} Bb4 {[%emt 0:00:13]} 63. Re2 {[%emt 0:00:14]} Ra7 {[%emt 0:00:10]} 64. Rc2 {[%emt 0:00:21]} e4 {[%emt 0:00:16]} 65. Rc1 {[%emt 0:00:06]} d3 {[%emt 0:00:06]} 66. Rd4 {[%emt 0:00:23]} d2 {[%emt 0:00:10]} 67. Rd1 {[%emt 0:00:01]} Bc3 {[%emt 0:00:16]} 68. Rc4 {[%emt 0:00:03]} Ba5 {[%emt 0:00:11]} 69. Ra4 {[%emt 0:00:10]} Bc3 {[%emt 0:00:19]} 70. Rc4 {[%emt 0:00:05]} Ba5 {[%emt 0:00:07]} 71. Ra4 {[%emt 0:00:02]} Bc3 {[%emt 0:00:14]} 72. Rc4 {[%emt 0:00:03]} Ba5 {[%emt 0:00:12]} 73. Ra4 {[%emt 0:00:31]} Bc3 {[%emt 0:00:01]} 1/2-1/2

[Event "EIRCC 2019"]
[Site "Tallinn"]
[Date "2019.12.05"]
[Round "4.15"]
[White "Haitin, Ilja"]
[Black "Lintchevski, Daniil"]
[Result "0-1"]
[ECO "D00"]
[WhiteElo "2232"]
[BlackElo "2515"]
[Annotator "ChessBase"]
[PlyCount "128"]
[EventDate "2019.12.05"]
[EventType "swiss"]
[EventCountry "EST"]
[SourceTitle "playchess.com"]
[Source "ChessBase"]
[SourceQuality "1"]
[TimeControl "900+10"]

1. d4 {[%emt 0:00:00]} d5 {[%emt 0:00:02]} 2. Bf4 {[%emt 0:00:00]} c5 {[%emt 0:00:11]} 3. e3 {[%emt 0:00:00]} Nc6 {[%emt 0:00:02]} 4. c3 {[%emt 0:00:00]} Nf6 {[%emt 0:00:12]} 5. Nd2 {[%emt 0:00:17]} e6 {[%emt 0:00:57]} 6. Ngf3 {[%emt 0:00:07]} Be7 {[%emt 0:00:03]} 7. Ne5 {[%emt 0:00:12]} Nxe5 {[%emt 0:00:31]} 8. Bxe5 {[%emt 0:00:22]} Qb6 {[%emt 0:00:17]} 9. Qb3 {[%emt 0:00:26]} Bd7 {[%emt 0:00:42]} 10. Be2 {[%emt 0:02:24]} O-O {[%emt 0:00:06]} 11. O-O {[%emt 0:00:08]} Rfc8 {[%emt 0:00:03]} 12. Rac1 {[%emt 0:02:47]} Be8 {[%emt 0:00:21]} 13. c4 {[%emt 0:00:26]} Qxb3 {[%emt 0:02:00]} 14. Nxb3 {[%emt 0:00:32]} Nd7 {[%emt 0:01:22]} 15. Bg3 {[%emt 0:00:54]} dxc4 {[%emt 0:00:21]} 16. Na5 {[%emt 0:01:52]} cxd4 {[%emt 0:00:41]} 17. exd4 {[%emt 0:00:23]} Nb6 {[%emt 0:00:43]} 18. Nxb7 {[%emt 0:00:34]} Bc6 {[%emt 0:00:57]} 19. Nd6 {[%emt 0:01:35]} Bxd6 {[%emt 0:00:03]} 20. Bxd6 {[%emt 0:00:01]} Bd5 {[%emt 0:00:02]} 21. Rc2 {[%emt 0:01:28]} Be4 {[%emt 0:01:13]} 22. Rc3 {[%emt 0:00:25]} Na4 {[%emt 0:00:06]} 23. Rxc4 {[%emt 0:00:25]} Nxb2 {[%emt 0:00:11]} 24. Rxc8+ {[%emt 0:01:32]} Rxc8 {[%emt 0:00:02]} 25. Bc5 {[%emt 0:00:02]} a5 {[%emt 0:01:00]} 26. f3 {[%emt 0:00:40]} Bd3 {[%emt 0:00:38]} 27. Bxd3 {[%emt 0:00:17]} Nxd3 {[%emt 0:00:02]} 28. Rb1 {[%emt 0:00:38]} f6 {[%emt 0:00:18]} 29. Kf1 {[%emt 0:00:52]} e5 {[%emt 0:01:07]} 30. a4 {[%emt 0:00:25]} exd4 {[%emt 0:00:42]} 31. Bxd4 {[%emt 0:00:03]} Rc4 {[%emt 0:00:00]} 32. Rb8+ {[%emt 0:00:13]} Kf7 {[%emt 0:00:02]} 33. Be3 {[%emt 0:00:17]} Rxa4 {[%emt 0:00:05]} 34. Ke2 {[%emt 0:00:02]} Ne5 {[%emt 0:00:25]} 35. Rb7+ {[%emt 0:00:02]} Kg6 {[%emt 0:00:01]} 36. Ra7 {[%emt 0:00:16]} Ra2+ {[%emt 0:00:03]} 37. Kf1 {[%emt 0:00:03]} Nc6 {[%emt 0:01:11]} 38. Ra6 {[%emt 0:00:03]} Nb4 {[%emt 0:00:03]} 39. Ra7 {[%emt 0:00:07]} Nd3 {[%emt 0:00:21]} 40. h4 {[%emt 0:00:13]} h5 {[%emt 0:00:16]} 41. g4 {[%emt 0:00:03]} Ne5 {[%emt 0:00:37]} 42. gxh5+ {[%emt 0:00:03]} Kxh5 {[%emt 0:00:02]} 43. Rxg7 {[%emt 0:00:09]} Nxf3 {[%emt 0:00:05]} 44. Bf2 {[%emt 0:00:27]} a4 {[%emt 0:00:07]} 45. Rh7+ {[%emt 0:00:20]} Kg6 {[%emt 0:00:12]} 46. Ra7 {[%emt 0:00:08]} Nd2+ {[%emt 0:00:10]} 47. Kg1 {[%emt 0:00:16]} Ne4 {[%emt 0:00:10]} 48. Be3 {[%emt 0:00:17]} Ng3 {[%emt 0:01:18]} 49. Ra5 {[%emt 0:00:11]} f5 {[%emt 0:00:02]} 50. Bf2 {[%emt 0:00:11]} Ne4 {[%emt 0:00:38]} 51. Be3 {[%emt 0:00:01]} Nc3 {[%emt 0:00:45]} 52. h5+ {[%emt 0:00:08]} Kxh5 {[%emt 0:00:12]} 53. Rxf5+ {[%emt 0:00:01]} Kg4 {[%emt 0:00:04]} 54. Rf8 {[%emt 0:00:20]} Rc2 {[%emt 0:00:16]} 55. Bh6 {[%emt 0:00:21]} a3 {[%emt 0:00:27]} 56. Ra8 {[%emt 0:00:08]} a2 {[%emt 0:00:01]} 57. Bg7 {[%emt 0:00:12]} Ne4 {[%emt 0:00:23]} 58. Ra3 {[%emt 0:00:08]} Nd2 {[%emt 0:00:17]} 59. Bf6 {[%emt 0:00:12]} Kf4 {[%emt 0:00:14]} 60. Bg7 {[%emt 0:00:10]} Nf3+ {[%emt 0:00:09]} 61. Kf1 {[%emt 0:00:00]} Ne5 {[%emt 0:00:01]} 62. Ra4+ {[%emt 0:00:16]} Kf5 {[%emt 0:00:01]} 63. Ra5 {[%emt 0:00:14]} Rc1+ {[%emt 0:00:02]} 64. Ke2 {[%emt 0:00:03]} a1=Q {[%emt 0:00:02]} 0-1

[Event "EIRCC 2019"]
[Site "Tallinn"]
[Date "2019.12.05"]
[Round "4.16"]
[White "Pershin, Denis"]
[Black "Krivenko, Sergey"]
[Result "1-0"]
[ECO "D79"]
[WhiteElo "2509"]
[BlackElo "2233"]
[Annotator "ChessBase"]
[PlyCount "89"]
[EventDate "2019.12.05"]
[EventType "swiss"]
[EventCountry "EST"]
[SourceTitle "playchess.com"]
[Source "ChessBase"]
[SourceQuality "1"]
[TimeControl "900+10"]

1. d4 {[%emt 0:00:00]} Nf6 {[%emt 0:00:00]} 2. c4 {[%emt 0:00:00]} g6 {[%emt 0:00:00]} 3. g3 {[%emt 0:00:00]} c6 {[%emt 0:00:00]} 4. Bg2 {[%emt 0:00:01]} d5 {[%emt 0:00:00]} 5. Nf3 {[%emt 0:00:16]} Bg7 {[%emt 0:00:00]} 6. O-O {[%emt 0:00:12]} O-O {[%emt 0:00:03]} 7. cxd5 {[%emt 0:00:43]} cxd5 {[%emt 0:00:02]} 8. Nc3 {[%emt 0:00:21]} Ne4 {[%emt 0:00:35]} 9. Ne5 {[%emt 0:00:51]} Nxc3 {[%emt 0:00:38]} 10. bxc3 {[%emt 0:00:01]} Nc6 {[%emt 0:01:04]} 11. Nxc6 {[%emt 0:00:02]} bxc6 {[%emt 0:00:01]} 12. Bf4 {[%emt 0:00:02]} Qa5 {[%emt 0:00:31]} 13. Qd2 {[%emt 0:02:20]} Bf5 {[%emt 0:01:07]} 14. Rfd1 {[%emt 0:01:26]} Rac8 {[%emt 0:01:04]} 15. Rac1 {[%emt 0:01:33]} Qa4 {[%emt 0:02:21]} 16. h3 {[%emt 0:00:51]} Rfe8 {[%emt 0:02:18]} 17. g4 {[%emt 0:00:21]} Bd7 {[%emt 0:00:01]} 18. Rb1 {[%emt 0:00:06]} e5 {[%emt 0:00:45]} 19. dxe5 {[%emt 0:00:02]} Bxe5 {[%emt 0:00:03]} 20. Bxe5 {[%emt 0:00:01]} Rxe5 {[%emt 0:00:01]} 21. Rb7 {[%emt 0:00:01]} Be8 {[%emt 0:00:20]} 22. e3 {[%emt 0:00:25]} Qa3 {[%emt 0:00:50]} 23. Qd4 {[%emt 0:00:24]} Re7 {[%emt 0:00:06]} 24. Rdb1 {[%emt 0:01:00]} Rxb7 {[%emt 0:02:14]} 25. Rxb7 {[%emt 0:00:01]} Qxa2 {[%emt 0:00:09]} 26. h4 {[%emt 0:00:35]} Qe2 {[%emt 0:03:55]} 27. Rxa7 {[%emt 0:02:49]} c5 {[%emt 0:00:47]} 28. Qf4 {[%emt 0:00:33]} Qe1+ 29. Kh2 Qxc3 {[%emt 0:00:36]} 30. Bxd5 {[%emt 0:00:01]} Qg7 {[%emt 0:00:04]} 31. h5 {[%emt 0:00:26]} gxh5 {[%emt 0:00:14]} 32. gxh5 {[%emt 0:00:01]} Rd8 {[%emt 0:00:20]} 33. e4 {[%emt 0:00:38]} h6 {[%emt 0:00:06]} 34. Ra3 {[%emt 0:00:09]} Kf8 {[%emt 0:00:12]} 35. Rg3 {[%emt 0:00:05]} Qh8 {[%emt 0:00:01]} 36. Qc7 {[%emt 0:00:05]} Qd4 {[%emt 0:00:04]} 37. Qxd8 {[%emt 0:01:30]} Qxf2+ {[%emt 0:00:01]} 38. Rg2 {[%emt 0:00:29]} Qf4+ {[%emt 0:00:02]} 39. Kg1 {[%emt 0:00:01]} Qc1+ {[%emt 0:00:32]} 40. Kf2 {[%emt 0:00:01]} Qd2+ {[%emt 0:00:07]} 41. Kg3 {[%emt 0:00:25]} Qe3+ {[%emt 0:00:09]} 42. Kg4 {[%emt 0:00:01]} c4 {[%emt 0:00:19]} 43. Qd6+ {[%emt 0:00:08]} Kg8 {[%emt 0:00:13]} 44. Kh4+ {[%emt 0:00:09]} Kh7 {[%emt 0:00:01]} 45. Qg3 {[%emt 0:00:03]} 1-0

[Event "EIRCC 2019"]
[Site "Tallinn"]
[Date "2019.12.05"]
[Round "4.17"]
[White "Sysolyatin, Evgeny"]
[Black "Sebenik, Matej"]
[Result "0-1"]
[ECO "B31"]
[WhiteElo "2231"]
[BlackElo "2504"]
[Annotator "ChessBase"]
[PlyCount "90"]
[EventDate "2019.12.05"]
[EventType "swiss"]
[EventCountry "EST"]
[SourceTitle "playchess.com"]
[Source "ChessBase"]
[SourceQuality "1"]
[TimeControl "900+10"]

1. e4 {[%emt 0:00:00]} c5 {[%emt 0:00:00]} 2. Nf3 {[%emt 0:00:00]} Nc6 {[%emt 0:00:00]} 3. Bb5 {[%emt 0:00:00]} g6 {[%emt 0:00:00]} 4. O-O {[%emt 0:00:00]} Bg7 {[%emt 0:00:00]} 5. Bxc6 {[%emt 0:00:00]} dxc6 {[%emt 0:00:07]} 6. h3 {[%emt 0:00:02]} b6 {[%emt 0:01:12]} 7. d3 {[%emt 0:00:22]} Nh6 {[%emt 0:00:03]} 8. a4 {[%emt 0:00:03]} a5 {[%emt 0:00:08]} 9. Nbd2 {[%emt 0:00:40]} O-O {[%emt 0:01:58]} 10. Qe2 {[%emt 0:00:34]} Qc7 {[%emt 0:02:04]} 11. Nc4 {[%emt 0:01:36]} Ba6 {[%emt 0:00:01]} 12. Bd2 {[%emt 0:01:14]} f6 {[%emt 0:01:06]} 13. b3 {[%emt 0:01:01]} e5 {[%emt 0:00:08]} 14. Nh2 {[%emt 0:00:12]} Rae8 {[%emt 0:00:49]} 15. f4 {[%emt 0:02:25]} Bxc4 {[%emt 0:00:43]} 16. bxc4 {[%emt 0:00:02]} f5 {[%emt 0:00:01]} 17. fxe5 {[%emt 0:00:52]} Nf7 {[%emt 0:01:30]} 18. Rab1 {[%emt 0:02:48]} fxe4 {[%emt 0:00:40]} 19. dxe4 {[%emt 0:00:02]} Nxe5 {[%emt 0:00:20]} 20. Ng4 {[%emt 0:01:12]} Nxg4 {[%emt 0:01:01]} 21. Rxf8+ {[%emt 0:00:13]} Rxf8 {[%emt 0:00:04]} 22. Qxg4 {[%emt 0:00:02]} Qe5 {[%emt 0:00:01]} 23. c3 {[%emt 0:01:58]} Rd8 {[%emt 0:03:41]} 24. Be1 {[%emt 0:00:02]} Re8 {[%emt 0:00:22]} 25. Bd2 {[%emt 0:00:47]} Qxe4 {[%emt 0:00:27]} 26. Rxb6 {[%emt 0:00:58]} Qd3 {[%emt 0:01:19]} 27. Bf4 {[%emt 0:01:32]} Qxc4 {[%emt 0:00:21]} 28. Rb7 {[%emt 0:00:39]} Qe6 {[%emt 0:00:55]} 29. Qxe6+ {[%emt 0:00:23]} Rxe6 {[%emt 0:00:02]} 30. c4 {[%emt 0:00:03]} Re4 {[%emt 0:00:12]} 31. Rb8+ {[%emt 0:00:03]} Kf7 {[%emt 0:00:01]} 32. Rb7+ {[%emt 0:00:00]} Kf6 {[%emt 0:00:04]} 33. Bc7 {[%emt 0:00:09]} g5 {[%emt 0:00:42]} 34. Bxa5 {[%emt 0:00:02]} Rxc4 {[%emt 0:00:00]} 35. Bd8+ {[%emt 0:00:02]} Kg6 {[%emt 0:00:01]} 36. a5 {[%emt 0:00:02]} Bd4+ {[%emt 0:00:08]} 37. Kf1 {[%emt 0:00:01]} Ra4 {[%emt 0:00:03]} 38. Rb6 {[%emt 0:00:15]} Kf5 {[%emt 0:00:09]} 39. Rxc6 {[%emt 0:00:01]} Ke4 {[%emt 0:00:10]} 40. Bb6 {[%emt 0:00:44]} Ra1+ {[%emt 0:00:09]} 41. Ke2 {[%emt 0:00:01]} Ra2+ {[%emt 0:00:01]} 42. Kf1 {[%emt 0:00:26]} Rf2+ {[%emt 0:00:29]} 43. Ke1 {[%emt 0:00:01]} Rxg2 {[%emt 0:00:00]} 44. Re6+ {[%emt 0:00:40]} Kd3 {[%emt 0:00:10]} 45. Kd1 {[%emt 0:00:03]} Ra2 {[%emt 0:00:08]} 0-1

[Event "EIRCC 2019"]
[Site "Tallinn"]
[Date "2019.12.05"]
[Round "4.18"]
[White "Schnabel, Ralf"]
[Black "Kanep, Meelis"]
[Result "0-1"]
[ECO "B90"]
[WhiteElo "2220"]
[BlackElo "2466"]
[Annotator "ChessBase"]
[PlyCount "86"]
[EventDate "2019.12.05"]
[EventType "swiss"]
[EventCountry "EST"]
[SourceTitle "playchess.com"]
[Source "ChessBase"]
[SourceQuality "1"]
[TimeControl "900+10"]

1. e4 {[%emt 0:00:00]} c5 {[%emt 0:00:00]} 2. Nf3 {[%emt 0:00:00]} d6 {[%emt 0:00:00]} 3. d4 {[%emt 0:00:00]} cxd4 {[%emt 0:00:00]} 4. Nxd4 {[%emt 0:00:00]} Nf6 {[%emt 0:00:00]} 5. Nc3 {[%emt 0:00:00]} a6 {[%emt 0:00:01]} 6. a4 {[%emt 0:00:01]} e5 {[%emt 0:00:25]} 7. Nf3 {[%emt 0:00:02]} h6 {[%emt 0:00:22]} 8. Bc4 {[%emt 0:00:19]} Be7 {[%emt 0:00:31]} 9. O-O {[%emt 0:00:26]} O-O {[%emt 0:00:12]} 10. Qe2 {[%emt 0:01:00]} Qc7 {[%emt 0:01:07]} 11. Nd5 {[%emt 0:00:30]} Nxd5 {[%emt 0:00:08]} 12. Bxd5 {[%emt 0:00:02]} Bg4 {[%emt 0:01:25]} 13. h3 {[%emt 0:01:06]} Bh5 {[%emt 0:00:18]} 14. Rd1 {[%emt 0:01:25]} Nd7 {[%emt 0:00:27]} 15. c3 {[%emt 0:00:40]} Kh8 {[%emt 0:00:13]} 16. g4 {[%emt 0:00:26]} Bg6 {[%emt 0:00:04]} 17. a5 {[%emt 0:02:55]} Nf6 {[%emt 0:01:34]} 18. Ne1 {[%emt 0:00:56]} Nxd5 {[%emt 0:03:10]} 19. Rxd5 {[%emt 0:00:03]} f6 {[%emt 0:00:15]} 20. Ng2 {[%emt 0:01:32]} Qc6 {[%emt 0:00:14]} 21. f3 {[%emt 0:00:53]} Bf7 {[%emt 0:00:15]} 22. Ne3 {[%emt 0:00:03]} Bxd5 {[%emt 0:00:39]} 23. Nxd5 {[%emt 0:00:02]} Bd8 {[%emt 0:00:04]} 24. Be3 {[%emt 0:00:05]} Rc8 {[%emt 0:00:55]} 25. b4 {[%emt 0:00:07]} f5 {[%emt 0:02:24]} 26. gxf5 {[%emt 0:00:07]} Rxf5 {[%emt 0:00:27]} 27. exf5 {[%emt 0:00:43]} Qxd5 {[%emt 0:00:01]} 28. Bd2 {[%emt 0:00:40]} Qf7 {[%emt 0:00:13]} 29. Qd3 {[%emt 0:00:26]} d5 {[%emt 0:00:13]} 30. Rd1 {[%emt 0:02:33]} Bf6 {[%emt 0:00:21]} 31. Be1 {[%emt 0:00:06]} d4 {[%emt 0:01:14]} 32. cxd4 {[%emt 0:00:11]} exd4 {[%emt 0:00:01]} 33. Bf2 {[%emt 0:00:16]} Re8 {[%emt 0:00:46]} 34. b5 {[%emt 0:00:26]} axb5 {[%emt 0:00:14]} 35. Qxb5 {[%emt 0:00:01]} Re5 {[%emt 0:00:13]} 36. Qb1 {[%emt 0:00:56]} Rxa5 {[%emt 0:00:19]} 37. Kg2 {[%emt 0:00:01]} Ra2 {[%emt 0:00:16]} 38. Kf1 {[%emt 0:00:55]} Qc4+ {[%emt 0:00:12]} 39. Kg1 {[%emt 0:00:01]} Qe2 {[%emt 0:00:16]} 40. Rf1 {[%emt 0:00:09]} Bh4 {[%emt 0:00:19]} 41. Qxa2 {[%emt 0:00:52]} Qxa2 {[%emt 0:00:10]} 42. Bxh4 {[%emt 0:00:02]} d3 {[%emt 0:00:18]} 43. Bf2 {[%emt 0:00:33]} Qc2 {[%emt 0:00:27]} 0-1

[Event "EIRCC 2019"]
[Site "Tallinn"]
[Date "2019.12.05"]
[Round "4.19"]
[White "Babula, Vlastimil"]
[Black "Aizenberg, Benny"]
[Result "1-0"]
[ECO "A58"]
[WhiteElo "2559"]
[BlackElo "1995"]
[Annotator "ChessBase"]
[PlyCount "59"]
[EventDate "2019.12.05"]
[EventType "swiss"]
[EventCountry "EST"]
[SourceTitle "playchess.com"]
[Source "ChessBase"]
[SourceQuality "1"]
[TimeControl "900+10"]

1. d4 {[%emt 0:00:00]} Nf6 {[%emt 0:00:00]} 2. c4 {[%emt 0:00:00]} c5 {[%emt 0:00:00]} 3. d5 {[%emt 0:00:00]} b5 {[%emt 0:00:00]} 4. cxb5 {[%emt 0:00:00]} a6 {[%emt 0:00:00]} 5. bxa6 {[%emt 0:00:00]} g6 {[%emt 0:00:00]} 6. Nc3 {[%emt 0:00:01]} Bg7 {[%emt 0:00:00]} 7. e4 {[%emt 0:00:02]} O-O {[%emt 0:00:00]} 8. e5 {[%emt 0:00:04]} Ne8 {[%emt 0:00:02]} 9. h4 {[%emt 0:00:02]} Bxe5 {[%emt 0:00:11]} 10. h5 {[%emt 0:00:02]} Bxa6 {[%emt 0:00:25]} 11. Bh6 {[%emt 0:00:05]} Bg7 {[%emt 0:00:18]} 12. Qd2 {[%emt 0:00:05]} Bxf1 {[%emt 0:00:38]} 13. Kxf1 {[%emt 0:00:02]} Qb6 {[%emt 0:00:11]} 14. Nf3 {[%emt 0:00:30]} Na6 {[%emt 0:00:34]} 15. Re1 {[%emt 0:00:30]} Rb8 {[%emt 0:01:02]} 16. Bxg7 {[%emt 0:01:16]} Nxg7 {[%emt 0:00:03]} 17. hxg6 {[%emt 0:00:15]} Qxg6 {[%emt 0:00:04]} 18. Rh6 {[%emt 0:00:52]} Qg4 {[%emt 0:00:38]} 19. Rxa6 {[%emt 0:00:25]} e6 {[%emt 0:00:12]} 20. Ra4 {[%emt 0:01:22]} Rb4 {[%emt 0:00:23]} 21. Rxb4 {[%emt 0:00:09]} cxb4 {[%emt 0:00:23]} 22. Ne4 {[%emt 0:00:09]} f5 {[%emt 0:00:23]} 23. Ne5 {[%emt 0:02:10]} Qh4 {[%emt 0:00:49]} 24. Qg5 {[%emt 0:00:53]} Qh1+ {[%emt 0:01:01]} 25. Ke2 {[%emt 0:00:02]} Qh2 {[%emt 0:00:02]} 26. Nf6+ {[%emt 0:01:16]} Kh8 {[%emt 0:00:02]} 27. Nfxd7 {[%emt 0:00:15]} Re8 {[%emt 0:01:01]} 28. d6 {[%emt 0:00:33]} Rc8 {[%emt 0:00:36]} 29. Rc1 {[%emt 0:00:26]} Rxc1 {[%emt 0:01:08]} 30. Qd8+ {[%emt 0:00:25]} 1-0